bitfinex-derivatives/quotes_BNBF0:USTF0_20250116
["timestamp","ask_amount","ask_price","bid_price","bid_amount"]
[1737049802541,0.27972419,714.99,714.14,0.46810947]
[1737049802741,0.27972419,714.99,714.15,0.46810947]
[1737049802942,0.27972419,714.99,714.16,0.46810947]
[1737049803140,0.27972419,714.99,714.17,0.46810947]
[1737049803343,0.27972419,714.99,714.18,0.46810947]
[1737049803542,0.27972419,714.99,714.19,0.46810947]
[1737049803744,0.27972419,714.99,714.2,0.46810947]
[1737049804047,0.27972419,714.99,714.21,0.46810947]
[1737049804345,0.27972419,714.99,714.22,0.46810947]
[1737049804546,0.27972419,714.99,714.23,0.46810947]
[1737049804747,0.27972419,714.99,714.24,0.46810947]
[1737049804944,0.27972419,714.99,714.25,0.46810947]
[1737049805140,0.27972419,714.99,712.82,1.23902452]
[1737049805141,0.27972419,714.99,714.26,0.46810947]
[1737049805341,0.27972419,714.99,714.27,0.46810947]
[1737049805646,0.27972419,714.99,713.78,1.03252044]
[1737049805647,0.27972419,714.99,714.28,0.46810947]
[1737049805844,0.27972419,714.99,713.78,1.03252044]
[1737049805845,0.27972419,714.99,714.29,0.46810947]
[1737049806046,1.32148406,714.99,714.3,0.46810947]
[1737049806247,1.32148406,714.99,714.31,0.46810947]
[1737049806549,1.32148406,714.99,714.32,0.46810947]
[1737049806746,1.32148406,714.99,714.33,0.46810947]
[1737049806947,1.32148406,714.99,714.34,0.46810947]
[1737049807148,1.32148406,714.99,714.35,0.46810947]
[1737049807350,1.32148406,714.99,713.21,1.23902452]
[1737049807351,0.27972419,714.99,714.36,0.46810947]
[1737049807648,0.27972419,714.99,714.37,0.46810947]
[1737049807948,0.27972419,714.99,714.38,0.46810947]
[1737049808148,0.27972419,714.99,714.39,0.46810947]
[1737049808350,0.27972419,714.99,714.4,0.46810947]
[1737049808544,0.27972419,714.99,714.41,0.46810947]
[1737049808743,0.27972419,714.99,714.42,0.46810947]
[1737049808947,0.27972419,714.99,714.43,0.46810947]
[1737049809148,0.27972419,714.99,714.44,0.46810947]
[1737049809348,0.27972419,714.99,714.45,0.46810947]
[1737049809542,0.27972419,714.99,714.46,0.46810947]
[1737049809749,0.27972419,714.99,714.47,0.46810947]
[1737049809948,0.27972419,714.99,714.48,0.46810947]
[1737049810149,0.27972419,714.99,714.49,0.46903687]
[1737049810445,0.27972419,714.99,713.84,1.03252044]
[1737049810446,1.04175987,714.94,713.84,1.03252044]
[1737049810649,1.04175987,714.94,713.85,0.4691468]
[1737049810846,1.04175987,714.94,713.86,0.4691468]
[1737049811046,1.04175987,714.94,713.87,0.4691468]
[1737049811252,1.04175987,714.94,713.84,1.03252044]
[1737049811253,1.04175987,714.94,713.88,0.4691468]
[1737049811651,0.27972419,714.99,713.89,0.4691468]
[1737049811848,0.27972419,714.99,713.9,0.4691468]
[1737049812054,0.27972419,714.99,713.91,0.4691468]
[1737049812250,0.27972419,714.99,713.92,0.4691468]
[1737049812453,0.27972419,714.99,713.93,0.4691468]
[1737049812648,0.27972419,714.99,713.94,0.4691468]
[1737049812849,0.27972419,714.99,713.95,0.4691468]
[1737049813049,0.27972419,714.99,713.96,0.4691468]
[1737049813254,0.27972419,714.99,713.97,0.4691468]
[1737049813557,0.27972419,714.99,713.98,0.4691468]
[1737049813751,0.27972419,714.99,713.57,1.03252044]
[1737049813752,0.27972419,714.99,713.99,0.4691468]
[1737049814055,0.27972419,714.99,714.0,0.4691468]
[1737049814260,0.27972419,714.99,714.01,0.4691468]
[1737049814453,0.27972419,714.99,714.02,0.4691468]
[1737049814653,0.27972419,714.99,714.03,0.4691468]
[1737049814957,0.27972419,714.99,714.04,0.4691468]
[1737049815156,0.27972419,714.99,714.05,0.4691468]
[1737049815356,0.27972419,714.99,714.06,0.4691468]
[1737049815558,0.27972419,714.99,714.07,0.4691468]
[1737049815756,0.27972419,714.99,713.56,1.03252044]
[1737049815757,0.27972419,714.99,714.08,0.4691468]
[1737049815958,0.27972419,714.99,714.09,0.4691468]
[1737049816157,0.27972419,714.99,714.1,0.4691468]
[1737049816354,0.27972419,714.99,714.11,0.4691468]
[1737049816556,0.27972419,714.99,714.12,0.4691468]
[1737049816754,0.27972419,714.99,714.13,0.4691468]
[1737049816959,0.27972419,714.99,714.14,0.4691468]
[1737049817257,0.27972419,714.99,714.15,0.4691468]
[1737049817457,0.27972419,714.99,714.16,0.4691468]
[1737049817653,0.27972419,714.99,714.17,0.4691468]
[1737049817856,0.27972419,714.99,714.18,0.4691468]
[1737049818058,1.04175987,714.94,714.19,0.4691468]
[1737049818358,1.04175987,714.94,714.2,0.4691468]
[1737049818557,1.04175987,714.94,714.21,0.4691468]
[1737049818755,1.04175987,714.94,714.22,0.4691468]
[1737049818952,0.27972419,714.99,714.23,0.4691468]
[1737049819156,0.27972419,714.99,714.24,0.4691468]
[1737049819357,0.27972419,714.99,714.25,0.4691468]
[1737049819553,0.27972419,714.99,714.26,0.4691468]
[1737049819757,0.27972419,714.99,714.27,0.4691468]
[1737049820060,0.27972419,714.99,714.28,0.4691468]
[1737049820261,1.04175987,714.87,714.29,0.4691468]
[1737049820560,1.04175987,714.87,714.3,0.4691468]
[1737049820859,1.04175987,714.87,713.9,1.03252044]
[1737049820860,1.04175987,714.87,714.31,0.4691468]
[1737049821058,1.04175987,714.87,714.32,0.4691468]
[1737049821253,0.27972419,714.99,714.33,0.4691468]
[1737049821458,0.27972419,714.99,714.34,0.4691468]
[1737049821659,0.27972419,714.99,714.35,0.4691468]
[1737049821853,0.27972419,714.99,714.36,0.4691468]
[1737049822054,0.27972419,714.99,713.62,1.03252044]
[1737049822252,0.27972419,714.99,713.63,0.46885406]
[1737049822459,0.27972419,714.99,713.64,0.72611437]
[1737049822660,0.27972419,714.99,713.65,0.7261036]
[1737049822859,0.27972419,714.99,713.66,0.7261036]
[1737049823059,0.27972419,714.99,713.62,1.03252044]
[1737049823060,0.27972419,714.99,713.67,0.7261036]
[1737049823259,0.27972419,714.99,713.68,0.7261036]
[1737049823453,0.27972419,714.99,713.69,0.7261036]
[1737049823657,0.27972419,714.99,713.7,0.7261036]
[1737049823856,0.27972419,714.99,713.71,0.7261036]
[1737049824057,0.27972419,714.99,713.72,0.7261036]
[1737049824358,1.04175987,714.91,713.86,1.03252044]
[1737049824559,1.04175987,714.91,713.87,0.46884329]
[1737049824758,1.04175987,714.91,713.88,0.46884329]
[1737049824958,1.04175987,714.91,713.89,0.46884329]
[1737049825160,1.04175987,714.91,713.9,0.46884329]
[1737049825358,1.04175987,714.91,713.91,0.46884329]
[1737049825559,1.04175987,714.96,713.92,0.46884329]
[1737049825754,1.04175987,714.96,713.93,0.46884329]
[1737049825958,1.04175987,714.96,713.94,0.46884329]
[1737049826159,1.04175987,714.96,713.95,0.46884329]
[1737049826364,1.04175987,714.96,713.96,0.46866632]
[1737049826562,0.27972419,714.99,713.97,0.46866632]
[1737049826861,0.27972419,714.99,713.98,0.46866632]
[1737049827161,0.27972419,714.99,713.99,0.46866632]
[1737049827364,0.27972419,714.99,714.0,0.46866632]
[1737049827563,0.27972419,714.99,714.01,0.46866632]
[1737049827759,0.27972419,714.99,714.02,0.46866632]
[1737049827960,0.27972419,714.99,714.03,0.46866632]
[1737049828161,0.27972419,714.99,714.04,0.46866632]
[1737049828461,0.27972419,714.99,714.05,0.46866632]
[1737049828757,0.27972419,714.99,714.06,0.46866632]
[1737049828958,0.27972419,714.99,714.07,0.46866632]
[1737049829164,0.27972419,714.99,713.84,1.03252044]
[1737049829165,0.27972419,714.99,714.08,0.46866632]
[1737049829359,0.27972419,714.99,714.09,0.46866632]
[1737049829560,0.27972419,714.99,714.1,0.46866632]
[1737049829761,0.27972419,714.99,714.11,0.46843234]
[1737049829962,0.27972419,714.99,714.12,0.46843234]
[1737049830169,0.27972419,714.99,714.13,0.46843234]
[1737049830362,0.27972419,714.99,714.14,0.46843234]
[1737049830566,0.27972419,714.99,714.15,0.46843234]
[1737049830869,0.27972419,714.99,714.16,0.46843234]
[1737049831064,0.27972419,714.99,714.17,0.46843234]
[1737049831368,0.27972419,714.99,714.18,0.46843234]
[1737049831570,0.27972419,714.99,714.19,0.46843234]
[1737049831769,0.27972419,714.99,714.2,0.46843234]
[1737049831966,0.27972419,714.99,714.21,0.46843234]
[1737049832170,0.27972419,714.99,714.22,0.46843234]
[1737049832373,0.27972419,714.99,714.23,0.46843234]
[1737049832565,0.27972419,714.99,714.24,0.46843234]
[1737049832765,0.27972419,714.99,714.25,0.46843234]
[1737049832970,0.27972419,714.99,714.26,0.46843234]
[1737049833272,1.04175987,714.97,714.27,0.46843234]
[1737049833468,1.04175987,714.97,713.84,1.03252044]
[1737049833676,1.04175987,714.97,713.85,0.46887119]
[1737049833884,1.04175987,714.97,713.86,0.46887119]
[1737049834174,1.04175987,714.97,713.87,0.46887119]
[1737049834375,1.04175987,714.97,713.88,0.46887119]
[1737049834673,1.04175987,714.97,713.89,0.46887119]
[1737049834874,1.04175987,714.91,713.9,0.46887119]
[1737049835068,1.04175987,714.91,713.91,0.46887119]
[1737049835268,1.04175987,714.91,713.92,0.46887119]
[1737049835571,1.04175987,714.91,713.93,0.46887119]
[1737049835775,1.04175987,714.91,713.94,0.46887119]
[1737049835977,1.04175987,714.94,713.95,0.46887119]
[1737049836277,1.04175987,714.94,713.96,0.46887119]
[1737049836478,1.04175987,714.94,713.97,0.46887119]
[1737049836671,1.04175987,714.94,713.98,0.46887119]
[1737049836974,1.04175987,714.94,713.99,0.46887119]
[1737049837177,1.04175987,714.87,714.0,0.46887119]
[1737049837370,1.04175987,714.87,714.01,0.46887119]
[1737049837570,1.04175987,714.87,714.02,0.46887119]
[1737049837771,1.04175987,714.87,714.03,0.46887119]
[1737049837976,1.04175987,714.87,714.04,0.46887119]
[1737049838171,1.04175987,714.87,714.05,0.46887119]
[1737049838374,1.04175987,714.9,714.06,0.46887119]
[1737049838578,1.04175987,714.9,714.07,0.46887119]
[1737049838878,1.04175987,714.9,714.08,0.46887119]
[1737049839078,1.04175987,714.9,714.09,0.46887119]
[1737049839378,1.04175987,714.9,714.1,0.46887119]
[1737049839577,1.04175987,714.95,714.11,0.46887119]
[1737049839777,1.04175987,714.95,714.12,0.46887119]
[1737049839977,1.04175987,714.95,714.13,0.46887119]
[1737049840179,0.27974375,714.94,714.14,0.46887119]
[1737049840478,0.27974375,714.94,714.15,0.46887119]
[1737049840680,0.27974375,714.94,714.16,0.46887119]
[1737049840980,0.27974375,714.94,714.17,0.46887119]
[1737049841175,0.27974375,714.94,714.18,0.46887119]
[1737049841375,0.27974375,714.94,714.19,0.46887119]
[1737049841572,0.27974375,714.94,714.2,0.46887119]
[1737049841774,0.27974375,714.94,714.21,0.46887119]
[1737049841972,0.27974375,714.94,714.22,0.46887119]
[1737049842176,0.27974375,714.94,714.23,0.46887119]
[1737049842376,0.27974375,714.94,713.34,1.03252044]
[1737049842577,0.27974375,714.94,713.35,0.72597949]
[1737049842777,0.27974375,714.94,713.36,1.00634284]
[1737049842973,0.27974375,714.94,713.37,0.72597949]
[1737049843178,0.27974375,714.94,713.38,0.72597949]
[1737049843380,0.27974375,714.94,713.39,1.00633105]
[1737049843582,0.27974375,714.94,713.4,1.00632712]
[1737049843878,0.27974375,714.94,713.41,0.72597949]
[1737049844178,0.27974375,714.94,713.42,0.72597949]
[1737049844380,0.27974375,714.94,713.43,0.46864735]
[1737049844580,0.27974375,714.94,713.44,0.72598179]
[1737049844776,0.27974375,714.94,713.45,0.72598179]
[1737049845079,0.27974375,714.94,713.46,0.72598179]
[1737049845275,0.27974375,714.94,713.47,0.46864735]
[1737049845477,0.27974375,714.94,713.48,0.46864735]
[1737049845673,0.27974375,714.94,713.49,0.46864735]
[1737049845874,0.27974375,714.94,713.5,0.46864735]
[1737049846078,0.27974375,714.94,713.51,0.46864735]
[1737049846374,0.27974375,714.94,713.52,0.46864735]
[1737049846578,0.27974375,714.94,713.53,0.46864735]
[1737049846779,0.27974375,714.94,713.54,0.46864735]
[1737049847080,0.27974375,714.94,713.55,0.46864735]
[1737049847280,0.27974375,714.94,713.56,0.46864735]
[1737049847480,0.27974375,714.94,713.57,0.46864735]
[1737049847677,0.27974375,714.94,713.58,0.46864735]
[1737049847875,0.27974375,714.94,713.59,0.46864735]
[1737049848074,0.27974375,714.94,713.6,0.46864735]
[1737049848280,0.27974375,714.94,713.61,0.46864735]
[1737049848477,0.27974375,714.94,713.62,0.46864735]
[1737049848677,0.27974375,714.94,713.63,0.46864735]
[1737049848878,0.27974375,714.94,713.41,0.2803437]
[1737049848879,0.27974375,714.94,713.64,0.46864735]
[1737049849080,0.27974375,714.94,713.65,0.46864735]
[1737049849282,0.27974375,714.94,713.66,0.46864735]
[1737049849480,0.27974375,714.94,713.67,0.46864735]
[1737049849680,0.27974375,714.94,713.68,0.46864735]
[1737049849975,0.27974375,714.94,713.69,0.46864735]
[1737049850180,0.27974375,714.94,713.7,0.46864735]
[1737049850380,0.27974375,714.94,713.71,0.46864735]
[1737049850583,0.27974375,714.94,713.72,0.46864735]
[1737049850779,0.27974375,714.94,713.73,0.46864735]
[1737049850984,0.27974375,714.94,713.74,0.46864735]
[1737049851183,0.27974375,714.94,713.75,0.46864735]
[1737049851381,0.27974375,714.94,713.76,0.46864735]
[1737049851581,0.27974375,714.94,713.77,0.46864735]
[1737049851778,0.27974375,714.94,713.78,0.46864735]
[1737049851984,0.27974375,714.94,713.79,0.46864735]
[1737049852185,0.27974375,714.94,713.8,0.46864735]
[1737049852385,0.27974375,714.94,713.81,0.46789914]
[1737049852586,0.27974375,714.94,713.82,0.4576255]
[1737049852786,0.27974375,714.94,713.41,0.2803437]
[1737049852985,0.27974375,714.94,713.42,0.25732263]
[1737049854985,0.27974375,714.94,713.43,0.28033584]
[1737049855185,0.27974375,714.94,713.44,0.25732263]
[1737049855588,0.27974375,714.94,713.45,0.28032798]
[1737049855892,0.27974375,714.94,713.46,0.85692874]
[1737049857390,0.27974375,714.94,713.47,0.25732263]
[1737049857592,0.27974375,714.94,713.61,1.03252044]
[1737049857787,0.27974375,714.94,713.62,0.25732263]
[1737049857986,0.27974375,714.94,713.61,1.03252044]
[1737049858184,0.27974375,714.94,713.62,0.25724456]
[1737049858888,0.27974375,714.94,713.63,0.53749937]
[1737049859086,0.27974375,714.94,713.63,0.28025727]
[1737049859688,0.27974375,714.94,713.63,1.31277771]
[1737049860394,0.27974375,714.94,713.63,0.28025727]
[1737049862994,0.27974375,714.94,713.64,0.25731711]
[1737049863787,1.04175987,714.87,713.64,0.25731711]
[1737049864488,1.04175987,714.87,713.65,0.46768024]
[1737049864696,1.04175987,714.86,713.66,0.72499735]
[1737049864894,1.04175987,714.86,713.67,0.72499735]
[1737049865095,1.04175987,714.86,713.68,0.72499735]
[1737049865288,1.04175987,714.86,713.69,0.72499735]
[1737049865492,1.04175987,714.86,713.7,0.7250048]
[1737049865693,1.04175987,714.81,713.71,0.7250048]
[1737049865893,1.04175987,714.81,713.72,0.7250048]
[1737049866091,1.04175987,714.81,713.73,0.72500911]
[1737049866292,1.04175987,714.81,713.74,0.72500911]
[1737049866491,1.04175987,714.76,713.75,0.46768024]
[1737049866697,1.04175987,714.76,713.76,0.46768024]
[1737049866894,1.04175987,714.76,713.77,0.46768024]
[1737049867096,1.04175987,714.76,713.78,0.46768024]
[1737049867289,1.04175987,714.76,713.79,0.46768024]
[1737049867495,1.04175987,714.81,713.8,0.46768024]
[1737049867696,1.04175987,714.81,713.81,0.46768024]
[1737049867996,1.04175987,714.81,713.82,0.46768024]
[1737049868296,1.04175987,714.81,713.83,0.46768024]
[1737049868497,1.04175987,714.78,713.84,0.46768024]
[1737049868694,1.04175987,714.78,713.85,0.46768024]
[1737049868895,1.04175987,714.78,713.86,0.46768024]
[1737049869095,1.04175987,714.78,713.87,0.46768024]
[1737049869397,1.04175987,714.78,713.88,0.46768024]
[1737049869599,1.04175987,714.78,713.89,0.46768024]
[1737049869799,1.04175987,714.78,713.9,0.46768024]
[1737049870000,1.04175987,714.76,713.91,0.46768024]
[1737049870199,1.04175987,714.76,713.92,0.46768024]
[1737049870402,1.04175987,714.76,713.93,0.46768024]
[1737049870602,1.04175987,714.76,713.94,0.46768024]
[1737049870795,1.04175987,714.76,713.95,0.46768024]
[1737049870992,1.04175987,714.76,713.96,0.46768024]
[1737049871196,1.04175987,714.69,713.97,0.46768024]
[1737049871398,1.04175987,714.69,713.98,0.46768024]
[1737049871601,1.04175987,714.69,713.99,0.46768024]
[1737049871901,1.04175987,714.69,714.0,0.46768024]
[1737049872097,1.04175987,714.69,714.01,0.46768024]
[1737049872298,1.04175987,714.69,714.02,0.46768024]
[1737049872499,1.04175987,714.69,714.03,0.46774683]
[1737049872798,1.04175987,714.69,713.63,0.28025727]
[1737049872799,1.04175987,714.69,714.04,0.46774683]
[1737049872996,1.04175987,714.71,714.05,0.46774683]
[1737049873201,1.04175987,714.71,714.06,0.46774683]
[1737049873402,1.04175987,714.71,714.07,0.46774683]
[1737049873602,1.04175987,714.71,714.08,0.46774683]
[1737049873802,1.04175987,714.9,713.63,0.28025727]
[1737049873803,1.04175987,714.7,714.09,0.46774683]
[1737049873997,1.04175987,714.7,714.1,0.46774683]
[1737049874202,1.04175987,714.7,714.11,0.46774683]
[1737049874404,1.04175987,714.7,714.12,0.46774683]
[1737049874706,1.04175987,714.75,714.13,0.46774683]
[1737049874904,1.04175987,714.75,714.14,0.46774683]
[1737049875104,1.04175987,714.75,714.15,0.46774683]
[1737049875303,1.04175987,714.75,714.16,0.46774683]
[1737049875504,1.04175987,714.75,714.17,0.46774683]
[1737049875806,1.04175987,714.82,714.18,0.46774683]
[1737049876104,1.04175987,714.82,714.19,0.46774683]
[1737049876306,1.04175987,714.82,714.2,0.46774683]
[1737049876506,1.04175987,714.82,714.21,0.46774683]
[1737049876706,1.04175987,714.82,714.22,0.46774683]
[1737049876901,1.04175987,714.84,714.23,0.46774683]
[1737049877206,1.04175987,714.84,714.24,0.46774683]
[1737049877504,1.04175987,714.84,713.67,1.03252044]
[1737049877710,1.04175987,714.84,713.68,0.72482585]
[1737049877903,1.04175987,714.84,713.69,0.72482585]
[1737049878107,1.04175987,714.83,713.7,0.72482585]
[1737049878308,1.04175987,714.83,713.71,0.72482585]
[1737049878508,1.04175987,714.83,713.67,1.03252044]
[1737049878509,1.04175987,714.83,713.72,0.72482585]
[1737049878707,1.04175987,714.83,713.73,0.72482585]
[1737049878903,1.04175987,714.83,713.74,0.72482585]
[1737049879107,1.04175987,714.84,713.75,0.46751798]
[1737049879308,1.04175987,714.84,713.76,0.72481127]
[1737049879511,1.04175987,714.84,713.77,0.72481127]
[1737049879705,1.04175987,714.84,713.78,0.72481127]
[1737049879907,1.04175987,714.84,713.79,0.72481127]
[1737049880111,1.04175987,714.84,713.8,0.72481127]
[1737049880310,1.04175987,714.84,713.67,1.03252044]
[1737049880311,1.04175987,714.84,713.81,0.72481127]
[1737049880514,1.04175987,714.8,713.82,0.72481127]
[1737049880707,1.04175987,714.8,713.83,0.72481127]
[1737049881010,1.04175987,714.8,713.84,0.72481127]
[1737049881210,1.04175987,714.8,713.75,1.03252044]
[1737049881211,1.04175987,714.8,713.85,0.46751798]
[1737049881412,1.04175987,714.8,713.75,1.03252044]
[1737049881413,1.04175987,714.79,713.86,0.46751798]
[1737049881613,1.04175987,714.79,713.87,0.46751798]
[1737049881809,1.04175987,714.79,713.88,0.46751798]
[1737049882007,1.04175987,714.79,713.89,0.46751798]
[1737049882206,1.04175987,714.79,713.9,0.46751798]
[1737049882512,1.04175987,714.79,713.91,0.46751798]
[1737049882713,1.04175987,714.79,713.92,0.46751798]
[1737049882912,1.04175987,714.79,713.93,0.46751798]
[1737049883211,1.04175987,714.79,713.94,0.46751798]
[1737049883410,1.04175987,714.79,713.95,0.46751798]
[1737049883610,1.04175987,714.82,713.96,0.46751798]
[1737049883812,1.04175987,714.82,713.97,0.46751798]
[1737049884012,1.04175987,714.82,713.98,0.46751798]
[1737049884207,1.04175987,714.82,713.99,0.46751798]
[1737049884410,1.04175987,714.82,714.0,0.46751798]
[1737049884614,0.27974375,714.94,714.01,0.46751798]
[1737049884615,1.04175987,714.88,714.01,0.46751798]
[1737049884806,1.04175987,714.88,714.02,0.46751798]
[1737049885009,1.04175987,714.88,714.03,0.46751798]
[1737049885211,1.04175987,714.88,714.04,0.46751798]
[1737049885408,1.04175987,714.88,714.05,0.46751798]
[1737049885611,1.04175987,714.88,714.06,0.46751798]
[1737049885812,1.04175987,714.86,714.07,0.46751798]
[1737049886009,1.04175987,714.86,714.08,0.46751798]
[1737049886209,1.04175987,714.86,714.09,0.46751798]
[1737049886412,1.04175987,714.86,714.1,0.46751798]
[1737049886613,1.04175987,714.86,714.11,0.46745465]
[1737049886813,1.04175987,714.86,714.12,0.46745465]
[1737049887015,1.04175987,714.87,714.13,0.46745465]
[1737049887319,1.04175987,714.87,714.14,0.46745465]
[1737049887616,1.04175987,714.87,714.15,0.46745465]
[1737049887816,1.04175987,714.87,714.16,0.46745465]
[1737049888016,0.27974375,714.94,714.17,0.46745465]
[1737049888219,0.27974375,714.94,714.18,0.46745465]
[1737049888413,0.27974375,714.94,714.19,0.46745465]
[1737049888611,0.27974375,714.94,714.2,0.46745465]
[1737049888910,0.27974375,714.94,714.21,0.46745465]
[1737049889115,0.27974375,714.94,714.22,0.46745465]
[1737049889318,0.27974375,714.94,713.66,1.03252044]
[1737049889319,0.27974375,714.94,714.23,0.46745465]
[1737049889517,0.27974375,714.94,714.24,0.46745465]
[1737049889814,0.27974375,714.94,714.25,0.46745465]
[1737049890015,0.27974375,714.94,714.26,0.46745465]
[1737049890217,1.32150362,714.94,714.27,0.46745465]
[1737049890518,1.32150362,714.94,714.28,0.46745465]
[1737049890716,1.32150362,714.94,714.29,0.46745465]
[1737049890919,1.32150362,714.94,714.3,0.46745465]
[1737049891115,1.32150362,714.94,714.31,0.46745465]
[1737049891317,1.04175987,714.91,714.32,0.46745465]
[1737049891518,1.04175987,714.91,713.64,1.03252044]
[1737049891818,1.04175987,714.91,713.65,0.72577175]
[1737049892018,1.04175987,714.91,713.66,0.72577175]
[1737049892213,1.04175987,714.91,713.67,0.72577175]
[1737049892518,1.04175987,714.76,713.72,1.03252044]
[1737049892713,1.04175987,714.76,713.73,0.72577175]
[1737049892911,1.04175987,714.76,713.74,0.72577175]
[1737049893116,1.04175987,714.76,713.75,0.72577175]
[1737049893315,1.04175987,714.74,713.76,0.72577175]
[1737049893510,1.04175987,714.74,713.77,0.72577175]
[1737049893716,1.04175987,714.74,713.78,0.72577175]
[1737049893918,1.04175987,714.74,713.79,0.72577819]
[1737049894116,1.04175987,714.74,713.8,0.4684585]
[1737049894420,1.04175987,714.74,713.81,0.4684585]
[1737049894615,1.04175987,714.74,713.82,0.4684585]
[1737049894821,1.04175987,714.69,713.83,0.4684585]
[1737049895116,1.04175987,714.69,713.84,0.4684585]
[1737049895320,1.04175987,714.69,713.85,0.4684585]
[1737049895620,1.04175987,714.69,713.86,0.4684585]
[1737049895820,1.04175987,714.69,713.87,0.4684585]
[1737049896025,1.04175987,714.64,713.88,0.4684585]
[1737049896321,1.04175987,714.64,713.89,0.4684585]
[1737049896515,1.04175987,714.64,713.9,0.4684585]
[1737049896719,1.04175987,714.64,713.91,0.4684585]
[1737049897022,1.04175987,714.65,713.92,0.4684585]
[1737049897217,1.04175987,714.65,713.93,0.4684585]
[1737049897422,1.04175987,714.65,713.94,0.4684585]
[1737049897620,1.04175987,714.65,713.95,0.4684585]
[1737049897917,1.04175987,714.65,713.67,1.03252044]
[1737049897918,1.04175987,714.65,713.96,0.4684585]
[1737049898123,1.04175987,714.65,713.97,0.4684585]
[1737049898423,1.04175987,714.65,713.98,0.4684585]
[1737049898723,1.04175987,714.65,713.99,0.4684585]
[1737049899021,1.04175987,714.65,714.0,0.4684585]
[1737049899223,1.04175987,714.68,714.01,0.4684585]
[1737049899523,1.04175987,714.68,714.02,0.4684585]
[1737049899723,1.04175987,714.68,714.03,0.4684585]
[1737049899922,1.04175987,714.68,714.04,0.4684585]
[1737049900119,1.04175987,714.68,714.05,0.4684585]
[1737049900322,1.04175987,714.68,714.06,0.4684585]
[1737049900519,1.04175987,714.68,714.07,0.4684585]
[1737049900720,1.04175987,714.68,714.08,0.4684585]
[1737049901024,1.04175987,714.68,714.09,0.4684585]
[1737049901219,1.04175987,714.68,714.1,0.4684585]
[1737049901427,1.04175987,714.7,714.11,0.4684585]
[1737049901623,1.04175987,714.7,714.12,0.4684585]
[1737049901918,1.04175987,714.7,713.71,1.03252044]
[1737049901919,1.04175987,714.7,714.13,0.4684585]
[1737049902122,1.04175987,714.7,714.14,0.4684585]
[1737049902323,1.04175987,714.68,714.15,0.4684585]
[1737049902525,1.04175987,714.68,714.16,0.4684585]
[1737049902725,1.04175987,714.68,714.17,0.4684585]
[1737049902928,1.04175987,714.68,714.18,0.4684585]
[1737049903227,1.04175987,714.68,714.19,0.4684585]
[1737049903525,1.04175987,714.68,714.2,0.4684585]
[1737049903725,1.04175987,714.68,714.21,0.4684585]
[1737049903925,1.04175987,714.68,714.22,0.4684585]
[1737049904227,1.04175987,714.68,714.23,0.4684585]
[1737049904427,1.04175987,714.68,714.24,0.4684585]
[1737049904627,1.04175987,714.68,714.25,0.4684585]
[1737049904828,1.04175987,714.68,714.26,0.4684585]
[1737049905030,1.04175987,714.73,714.27,0.4684585]
[1737049905226,1.04175987,714.73,714.28,0.4684585]
[1737049905429,1.04175987,714.73,714.29,0.4684585]
[1737049905627,1.04175987,714.73,714.3,0.4684585]
[1737049905829,1.04175987,714.73,714.31,0.4684585]
[1737049906129,1.04175987,714.88,714.32,0.4684585]
[1737049906429,1.04175987,714.88,714.33,0.4684585]
[1737049906730,1.04175987,714.88,714.34,0.4684585]
[1737049907029,1.04175987,714.88,714.35,0.4684585]
[1737049907225,1.04175987,714.88,714.36,0.4684585]
[1737049907431,1.04175987,714.89,714.37,0.4684585]
[1737049907632,1.04175987,714.89,714.38,0.4684585]
[1737049907830,1.04175987,714.89,713.85,1.03252044]
[1737049908030,1.04175987,714.89,713.86,0.46818091]
[1737049908224,1.04175987,714.89,713.85,1.03252044]
[1737049908426,1.04175987,714.89,713.86,0.46817567]
[1737049908627,1.04175987,714.83,713.87,0.46817567]
[1737049908931,1.04175987,714.83,713.88,0.46817567]
[1737049909131,1.04175987,714.83,713.89,0.46817567]
[1737049909333,1.04175987,714.83,713.9,0.46817567]
[1737049909533,1.04175987,714.86,713.91,0.46817567]
[1737049909734,1.04175987,714.86,713.92,0.46817567]
[1737049910033,1.04175987,714.86,713.93,0.46817567]
[1737049910232,1.04175987,714.86,713.94,0.46817567]
[1737049910427,1.04175987,714.86,713.95,0.46817567]
[1737049910633,1.04175987,714.86,713.75,1.03252044]
[1737049910634,1.04175987,714.85,713.96,0.46817567]
[1737049910831,1.04175987,714.85,713.97,0.46817567]
[1737049911027,1.04175987,714.85,713.98,0.46817567]
[1737049911226,1.04175987,714.85,713.99,0.46817567]
[1737049911431,1.04175987,714.85,714.0,0.46817567]
[1737049911631,1.04175987,714.87,714.01,0.46817567]
[1737049911831,1.04175987,714.87,714.02,0.46817567]
[1737049912031,1.04175987,714.87,714.03,0.46857452]
[1737049912227,1.04175987,714.87,714.04,0.46857452]
[1737049912434,1.04175987,714.87,714.05,0.46857452]
[1737049912730,1.04175987,714.87,714.06,0.46857452]
[1737049912931,0.27974375,714.94,713.63,0.28025727]
[1737049912932,1.04175987,714.88,714.07,0.46857452]
[1737049913134,1.04175987,714.88,714.08,0.46857452]
[1737049913326,1.04175987,714.88,714.09,0.46857452]
[1737049913528,1.04175987,714.88,714.1,0.46857452]
[1737049913729,1.04175987,714.88,714.11,0.46857452]
[1737049913929,1.04175987,714.88,714.12,0.46857452]
[1737049914133,1.04175987,714.91,714.13,0.46857452]